bitfinex-derivatives/quotes_BTCF0:USTF0_20250913
["timestamp","ask_amount","ask_price","bid_price","bid_amount"]
[1757772065223,0.12197865,115750.0,115740.0,3.08939085]
[1757772065429,0.0373478,115750.0,115740.0,3.35674422]
[1757772065629,0.0373478,115750.0,115740.0,3.27211337]
[1757772065927,0.0373478,115750.0,115740.0,3.52600592]
[1757772065928,0.01356,115750.0,115740.0,3.52600592]
[1757772066128,0.03729248,115750.0,115740.0,3.52600592]
[1757772066332,0.03729248,115750.0,115740.0,3.40600592]
[1757772066530,0.01356,115750.0,115740.0,3.95600592]
[1757772066725,0.01356,115750.0,115740.0,3.70511337]
[1757772066925,0.01356,115750.0,115740.0,3.95900592]
[1757772067629,0.01356,115760.0,115740.0,3.95900592]
[1757772067828,0.01356,115760.0,115750.0,0.3608]
[1757772068035,0.01356,115760.0,115750.0,1.39469255]
[1757772069330,0.03378942,115770.0,115750.0,1.39469255]
[1757772069529,0.05751891,115770.0,115760.0,0.3608]
[1757772069730,0.14214976,115770.0,115760.0,1.3935417]
[1757772069931,0.14214976,115770.0,115760.0,1.22428]
[1757772070132,0.16407976,115770.0,115760.0,1.3935017]
[1757772070525,0.16407976,115770.0,115760.0,1.3935417]
[1757772070835,0.16407976,115770.0,115760.0,0.5300617]
[1757772071136,0.07944891,115770.0,115760.0,1.3935017]
[1757772071330,0.16407976,115770.0,115760.0,1.22424]
[1757772071532,0.24871061,115770.0,115760.0,1.22424]
[1757772071833,0.07944891,115770.0,115760.0,0.3608]
[1757772072027,0.24871061,115770.0,115760.0,1.30883085]
[1757772072436,0.24871061,115770.0,115760.0,1.2242]
[1757772072730,0.24871061,115770.0,115760.0,1.30883085]
[1757772073435,0.24871061,115770.0,115760.0,1.22416]
[1757772073831,0.24871061,115770.0,115760.0,1.22412]
[1757772074031,0.24871061,115770.0,115760.0,1.30875085]
[1757772074230,0.24871061,115770.0,115760.0,0.3608]
[1757772074427,0.07944891,115770.0,115760.0,1.22408]
[1757772074733,0.07944891,115770.0,115760.0,0.3608]
[1757772074936,0.33334146,115770.0,115760.0,1.22404]
[1757772075128,0.07944891,115770.0,115760.0,1.22404]
[1757772075324,0.36425302,115770.0,115760.0,1.22404]
[1757772075835,0.36425302,115770.0,115760.0,0.3608]
[1757772076236,0.33334146,115770.0,115760.0,0.3608]
[1757772076638,0.33334146,115770.0,115760.0,1.22396]
[1757772077829,0.33334146,115770.0,115760.0,1.22388]
[1757772078035,0.07944891,115770.0,115760.0,1.22388]
[1757772078239,0.36425302,115770.0,115760.0,1.22388]
[1757772079439,0.03549,115760.0,115750.0,0.3608]
[1757772079737,0.01356,115750.0,115740.0,2.12106422]
[1757772080034,0.20655119,115750.0,115740.0,2.98406422]
[1757772080439,0.03728949,115750.0,115740.0,2.89943337]
[1757772080641,0.20655119,115750.0,115740.0,2.03643337]
[1757772080837,0.29118204,115750.0,115740.0,2.89939337]
[1757772081643,0.29118204,115750.0,115740.0,2.03843337]
[1757772081644,0.20655119,115750.0,115740.0,2.03843337]
[1757772081842,0.29118204,115750.0,115740.0,1.66028]
[1757772082144,0.33053808,115750.0,115740.0,2.52316]
[1757772082444,0.36848108,115750.0,115740.0,2.52616]
[1757772083145,0.3220936,115750.0,115740.0,2.52616]
[1757772083345,0.3220936,115750.0,115740.0,2.52316]
[1757772083547,0.39076108,115750.0,115740.0,0.002]
[1757772083746,0.39076108,115750.0,115740.0,0.8648]
[1757772083747,0.76745092,115750.0,115740.0,0.8648]
[1757772083942,1.02134347,115750.0,115740.0,0.8648]
[1757772084144,1.03008916,115750.0,115740.0,0.8628]
[1757772085247,0.9991776,115750.0,115740.0,0.8628]
[1757772085943,0.95279012,115750.0,115740.0,0.8628]
[1757772086137,0.95279012,115750.0,115720.0,0.45808254]
[1757772086138,0.03625,115730.0,115720.0,0.45808254]
[1757772086338,0.14461034,115730.0,115720.0,1.45080254]
[1757772087052,0.31387204,115730.0,115720.0,1.43354]
[1757772087248,0.34475484,115730.0,115720.0,1.30354]
[1757772087447,0.34475484,115730.0,115720.0,1.30554]
[1757772087748,0.34475484,115730.0,115720.0,1.30854]
[1757772088451,0.34475484,115730.0,115720.0,0.94774]
[1757772088755,0.13718649,115730.0,115720.0,0.94774]
[1757772089049,0.39107904,115730.0,115720.0,0.94774]
[1757772089451,0.14085872,115730.0,115720.0,0.94774]
[1757772089651,0.39475127,115730.0,115720.0,0.94774]
[1757772090848,0.14085872,115730.0,115720.0,0.94774]
[1757772091150,0.39475127,115730.0,115720.0,0.94774]
[1757772091746,0.14085872,115730.0,115720.0,0.94774]
[1757772091942,0.34842707,115730.0,115720.0,0.94774]
[1757772092651,0.09453452,115730.0,115720.0,0.94774]
[1757772093152,0.41804389,115730.0,115720.0,0.94774]
[1757772094051,0.16415134,115730.0,115720.0,0.94774]
[1757772094250,0.41804389,115730.0,115720.0,0.94774]
[1757772094638,0.16415134,115730.0,115720.0,0.94774]
[1757772094845,0.41804389,115730.0,115720.0,0.94774]
[1757772095052,0.42063389,115730.0,115720.0,0.94774]
[1757772096044,0.46695809,115730.0,115720.0,0.94774]
[1757772096444,0.82775809,115730.0,115720.0,0.94758]
[1757772096744,0.79687529,115730.0,115720.0,0.94754]
[1757772096941,0.57378803,115730.0,115720.0,0.94754]
[1757772097144,0.82768058,115730.0,115720.0,0.94754]
[1757772097549,0.79687529,115730.0,115720.0,0.94754]
[1757772097749,0.79687529,115730.0,115720.0,0.86752]
[1757772098549,0.79687529,115730.0,115720.0,0.005]
[1757772099559,0.7813496,115730.0,115720.0,0.005]
[1757772099743,1.00055109,115730.0,115720.0,0.005]
[1757772100351,1.04687529,115730.0,115720.0,0.005]
[1757772100548,0.79298274,115730.0,115720.0,0.005]
[1757772100847,1.04687529,115730.0,115720.0,0.005]
[1757772101456,1.00055109,115730.0,115720.0,0.005]
[1757772102152,1.06240107,115730.0,115720.0,0.005]
[1757772103456,1.49970107,115730.0,115720.0,0.005]
[1757772104456,1.43785109,115730.0,115720.0,0.005]
[1757772105159,0.03625,115720.0,115710.0,0.08002]
[1757772105349,0.7125475,115720.0,115710.0,0.08002]
[1757772105654,0.73994922,115720.0,115710.0,0.08002]
[1757772106659,0.67834427,115720.0,115710.0,0.08402]
[1757772106860,0.67834427,115720.0,115710.0,0.08602]
[1757772107652,0.42445172,115720.0,115710.0,0.08602]
[1757772107857,0.67834427,115720.0,115710.0,0.08602]
[1757772109157,0.73994922,115720.0,115710.0,0.08602]
[1757772111058,0.67834427,115720.0,115710.0,0.08602]
[1757772111853,0.7555251,115720.0,115710.0,0.08602]
[1757772112157,1.0055251,115720.0,115710.0,0.01602]
[1757772112356,0.03402,115710.0,115700.0,0.0001]
[1757772112551,0.75763728,115710.0,115700.0,0.0001]
[1757772113253,0.6959283,115710.0,115700.0,0.0001]
[1757772113660,1.88518913,115710.0,115670.0,0.3608]
[1757772113854,0.36505112,115680.0,115670.0,1.14208]
[1757772114165,0.35792518,115680.0,115670.0,1.50288]
[1757772114668,0.36159741,115680.0,115670.0,1.22288]
[1757772114847,0.10770486,115680.0,115670.0,1.22688]
[1757772115553,0.36159741,115680.0,115670.0,1.22688]
[1757772115760,0.27696656,115680.0,115670.0,1.47688]
[1757772116359,0.20215253,115680.0,115670.0,1.57478372]
[1757772116554,0.14287939,115680.0,115670.0,1.65941457]
[1757772116754,0.14287939,115680.0,115670.0,1.66141457]
[1757772117063,0.11203257,115680.0,115670.0,1.63215287]
[1757772117252,0.11203257,115680.0,115670.0,1.71678372]
[1757772117561,0.20965342,115680.0,115670.0,1.63215287]
[1757772117861,0.05824854,115680.0,115670.0,1.63215287]
[1757772118164,0.11203257,115680.0,115670.0,1.71678372]
[1757772118352,0.05824854,115680.0,115670.0,1.80141457]
[1757772118553,0.14287939,115680.0,115670.0,1.80141457]
[1757772118753,0.05824854,115680.0,115670.0,1.80141457]
[1757772119251,0.14546939,115680.0,115670.0,1.80141457]
[1757772119450,0.06083854,115680.0,115670.0,2.01141457]
[1757772119658,0.06083854,115680.0,115670.0,1.84215287]
[1757772119854,0.06083854,115680.0,115670.0,2.09604542]
[1757772120055,0.02999172,115680.0,115670.0,2.09604542]
[1757772120357,0.02999172,115680.0,115670.0,1.95512032]
[1757772120761,0.02999172,115680.0,115670.0,2.06808777]
[1757772120965,0.03084682,115690.0,115670.0,2.15449037]
[1757772121160,0.09011996,115700.0,115680.0,0.5867349]
[1757772121466,0.03084682,115700.0,115690.0,1.33564745]
[1757772121764,0.20308741,115710.0,115690.0,1.86564745]
[1757772121957,0.15680427,115710.0,115700.0,0.3608]
[1757772122155,0.15680427,115710.0,115700.0,0.47376745]
[1757772122350,0.15680427,115710.0,115700.0,0.3608]
[1757772122660,0.03084682,115710.0,115700.0,1.9285749]
[1757772122959,0.03084682,115710.0,115700.0,1.9285349]
[1757772123160,0.20308741,115720.0,115700.0,1.7026]
[1757772123361,0.20308741,115720.0,115710.0,0.47376745]
[1757772123561,0.20308741,115720.0,115710.0,1.2226]
[1757772123759,0.20308741,115720.0,115710.0,0.3608]
[1757772124066,0.11114996,115720.0,115710.0,1.22256]
[1757772124266,0.06486682,115720.0,115710.0,1.22256]
[1757772124452,0.22411741,115720.0,115710.0,1.22256]
[1757772124653,0.11114996,115720.0,115710.0,1.22256]
[1757772124859,0.11414996,115720.0,115710.0,1.22256]
[1757772125062,0.15980427,115720.0,115710.0,0.3608]
[1757772125260,0.15980427,115720.0,115710.0,1.22252]
[1757772125561,0.06786682,115720.0,115710.0,1.22248]
[1757772125766,0.29380172,115720.0,115710.0,1.22248]
[1757772125964,0.29380172,115720.0,115710.0,0.3608]
[1757772126164,0.29380172,115720.0,115710.0,1.22244]
[1757772126467,0.06886682,115720.0,115710.0,1.22244]
[1757772126771,0.29480172,115720.0,115710.0,1.22244]
[1757772126959,0.06886682,115720.0,115710.0,1.22244]
[1757772127164,0.29480172,115720.0,115710.0,1.22244]
[1757772127465,0.29480172,115720.0,115710.0,1.2224]
[1757772127666,0.29480172,115720.0,115710.0,0.3608]
[1757772127860,0.29480172,115720.0,115710.0,1.22236]
[1757772128262,0.06886682,115720.0,115710.0,1.22236]
[1757772128463,0.29480172,115720.0,115710.0,1.22236]
[1757772128964,0.29480172,115720.0,115710.0,0.3608]
[1757772129173,0.29480172,115720.0,115710.0,1.22232]
[1757772129773,0.06886682,115720.0,115710.0,1.22232]
[1757772130175,0.29480172,115720.0,115710.0,1.22232]
[1757772130474,0.29480172,115720.0,115710.0,1.22228]
[1757772130674,0.29480172,115720.0,115710.0,1.2222]
[1757772131168,0.06886682,115720.0,115710.0,1.2222]
[1757772131369,0.29480172,115720.0,115710.0,1.2222]
[1757772131571,0.29480172,115720.0,115710.0,0.3608]
[1757772131870,0.29480172,115720.0,115710.0,1.22216]
[1757772132279,0.06886682,115720.0,115710.0,1.22216]
[1757772132573,0.06886682,115720.0,115710.0,0.3608]
[1757772132773,0.29480172,115720.0,115710.0,0.3608]
[1757772132973,0.31869748,115720.0,115710.0,1.22212]
[1757772133271,0.31869748,115720.0,115710.0,0.3608]
[1757772133663,0.31869748,115720.0,115710.0,1.22208]
[1757772134777,0.09276258,115720.0,115710.0,1.22208]
[1757772134972,0.31869748,115720.0,115710.0,1.22208]
[1757772136271,0.03402,115710.0,115700.0,0.3608]
[1757772136471,0.28385066,115710.0,115690.0,0.37862332]
[1757772136678,0.01299,115690.0,115680.0,0.3608]
[1757772136875,0.14698745,115690.0,115680.0,1.33192]
[1757772137075,0.17088321,115690.0,115680.0,1.33192]
[1757772137288,0.05791576,115690.0,115680.0,1.33192]
[1757772137488,0.17088321,115690.0,115680.0,1.33192]
[1757772138185,0.17088321,115690.0,115680.0,1.33188]
[1757772139282,0.17088321,115690.0,115680.0,1.33184]
[1757772139483,0.17088321,115690.0,115680.0,1.22184]
[1757772139791,0.05791576,115690.0,115680.0,1.22184]
[1757772140093,0.17088321,115690.0,115680.0,1.22184]
[1757772140392,0.17088321,115690.0,115680.0,1.22284]
[1757772143591,0.03688576,115690.0,115680.0,1.33580745]
[1757772143784,0.14612558,115700.0,115680.0,1.58580745]
[1757772143992,0.03687023,115700.0,115690.0,0.47376745]
[1757772144288,0.14983768,115700.0,115690.0,0.47376745]
[1757772144489,0.03687023,115700.0,115690.0,0.47376745]
[1757772144688,0.14983768,115700.0,115690.0,0.47376745]
[1757772144891,0.03687023,115700.0,115690.0,0.84376745]
[1757772145088,0.01299,115700.0,115690.0,0.84376745]
[1757772145392,0.01399,115700.0,115690.0,0.84376745]
[1757772145584,0.01399,115700.0,115690.0,0.6108]
[1757772145784,0.01399,115700.0,115690.0,0.72376745]
[1757772145985,0.01399,115700.0,115690.0,0.7208]
[1757772146181,0.001,115700.0,115690.0,0.83376745]
[1757772146489,0.001,115700.0,115690.0,1.24376745]
[1757772149690,0.001,115700.0,115690.0,1.1308]
[1757772150195,0.001,115700.0,115690.0,1.24376745]
[1757772150385,0.001,115700.0,115690.0,0.6108]
[1757772150592,0.14832745,115700.0,115690.0,1.2214]
[1757772150793,0.2612949,115700.0,115690.0,1.2214]
[1757772150992,0.5112949,115700.0,115690.0,0.3608]
[1757772151191,0.30927461,115700.0,115690.0,1.22136]
[1757772151493,0.42224206,115700.0,115690.0,1.22136]
[1757772151883,0.53520951,115700.0,115690.0,1.22136]
[1757772153096,0.53620951,115700.0,115690.0,1.22136]
[1757772154499,0.42324206,115700.0,115690.0,1.22136]
[1757772156891,0.03870461,115700.0,115690.0,1.44136]
[1757772157092,0.03870461,115700.0,115690.0,1.33432745]
[1757772157995,0.03870461,115700.0,115690.0,1.45432745]
[1757772158194,0.02391461,115700.0,115690.0,2.1972949]
[1757772158496,0.001,115700.0,115690.0,2.1972949]
[1757772159496,0.00259,115710.0,115690.0,1.72136]
[1757772159692,0.02651435,115710.0,115700.0,0.5867349]
[1757772159895,0.02651435,115710.0,115700.0,0.8167349]
[1757772160301,0.02651435,115710.0,115700.0,0.5867349]
[1757772160599,0.02651435,115710.0,115700.0,0.74376745]
[1757772161305,0.02651435,115710.0,115700.0,0.8567349]
[1757772161799,0.03930435,115710.0,115700.0,0.3608]
[1757772161999,0.1522718,115710.0,115700.0,1.33380745]
[1757772162296,0.1532718,115710.0,115700.0,1.33380745]
[1757772162899,0.1532718,115710.0,115700.0,1.22084]
[1757772163099,0.1532718,115710.0,115700.0,1.33380745]
[1757772163499,0.1542718,115710.0,115700.0,1.33380745]
[1757772164098,0.04030435,115710.0,115700.0,1.33380745]
[1757772164302,0.1532718,115710.0,115700.0,1.33380745]
[1757772164494,0.04030435,115710.0,115700.0,1.33380745]
[1757772164693,0.1542718,115710.0,115700.0,1.33380745]
[1757772164890,0.1758418,115710.0,115700.0,0.3608]
[1757772165097,0.01279,115700.0,115690.0,2.02044]
[1757772165397,0.26264925,115700.0,115690.0,2.88028]
[1757772166406,0.16823117,115700.0,115690.0,2.88028]
[1757772168407,0.16823117,115700.0,115690.0,1.22064]
[1757772169104,0.16923117,115700.0,115690.0,1.22064]
[1757772169704,0.03771435,115700.0,115690.0,1.22064]
[1757772169898,0.16923117,115700.0,115690.0,1.22064]
[1757772170103,0.41923117,115700.0,115690.0,1.22064]
[1757772171512,0.44080117,115700.0,115690.0,1.22032]
[1757772174208,0.30928435,115700.0,115690.0,1.22032]
[1757772174398,0.44080117,115700.0,115690.0,1.22032]
[1757772176909,0.46093531,115700.0,115690.0,1.22032]
[1757772178512,0.46093531,115700.0,115690.0,0.85952]
[1757772178906,0.32941849,115700.0,115690.0,0.85952]
[1757772179107,0.46093531,115700.0,115690.0,0.85952]
[1757772179304,0.32941849,115700.0,115690.0,0.85952]
[1757772179512,0.46093531,115700.0,115690.0,0.85952]
[1757772179909,0.32941849,115700.0,115690.0,0.85952]
[1757772180110,0.46093531,115700.0,115690.0,0.85952]
[1757772180310,0.03528,115690.0,115680.0,0.08004]
[1757772180616,0.19072117,115690.0,115680.0,0.93904]
[1757772181012,0.22156799,115690.0,115680.0,0.93904]
[1757772181812,0.47156799,115690.0,115670.0,0.3608]
[1757772182010,0.45085117,115690.0,115680.0,0.85892]
[1757772182322,0.45963665,115690.0,115680.0,0.85892]
[1757772182510,0.58772995,115690.0,115680.0,0.85892]
[1757772184213,0.42878983,115690.0,115680.0,0.85892]
[1757772184415,0.58772995,115690.0,115680.0,0.85892]
[1757772185015,0.42878983,115690.0,115680.0,0.85892]
[1757772185416,0.57894447,115690.0,115680.0,0.85892]
[1757772185620,0.21814447,115690.0,115680.0,0.85892]
[1757772186415,0.05920435,115690.0,115680.0,0.85892]
[1757772186617,0.22868767,115690.0,115680.0,0.85892]
[1757772186819,0.31342933,115690.0,115680.0,0.85892]
[1757772187116,0.03787435,115690.0,115680.0,1.19366166]
[1757772187316,0.03787435,115690.0,115680.0,1.63920332]
[1757772187624,0.12261601,115690.0,115680.0,1.72972]
[1757772188122,0.12261601,115690.0,115680.0,1.46972]
[1757772188423,0.03787435,115690.0,115680.0,1.57972]
[1757772188623,0.12261601,115690.0,115680.0,1.66446166]
[1757772189222,0.12261601,115690.0,115680.0,1.57972]
[1757772189423,0.12261601,115690.0,115680.0,1.58972]
[1757772189727,0.03787435,115690.0,115680.0,1.55402166]
[1757772190024,0.20735767,115690.0,115680.0,1.55398166]
[1757772190219,0.20735767,115690.0,115680.0,1.81398166]
[1757772190524,0.20735767,115690.0,115680.0,1.46924]
[1757772190825,0.03787435,115690.0,115680.0,1.55390166]
[1757772191124,0.20735767,115690.0,115680.0,1.55390166]
[1757772191317,0.20735767,115690.0,115680.0,0.69554166]
[1757772191523,0.31342933,115690.0,115680.0,1.46916]
[1757772192220,0.03787435,115690.0,115680.0,1.55390166]
[1757772192425,0.12261601,115690.0,115680.0,1.55390166]
[1757772192617,0.03787435,115690.0,115680.0,1.55390166]
[1757772192930,0.12261601,115690.0,115680.0,2.07864332]
[1757772193117,0.12261601,115690.0,115680.0,2.09771662]
[1757772193318,0.03787435,115690.0,115680.0,2.20000973]
[1757772193519,0.01279,115700.0,115680.0,2.19992973]
[1757772193826,0.01279,115700.0,115690.0,0.53028332]
[1757772193827,0.03768239,115700.0,115690.0,0.53028332]
[1757772194022,0.03768239,115700.0,115690.0,1.14028332]
[1757772194227,0.02489239,115700.0,115690.0,0.9708]
[1757772194420,0.02489239,115700.0,115690.0,0.78028332]
[1757772194625,0.02489239,115700.0,115690.0,2.15844332]
[1757772194626,0.10963405,115700.0,115690.0,2.15844332]
[1757772194924,0.12358405,115700.0,115690.0,1.55366166]
[1757772195115,0.12358405,115700.0,115690.0,0.69554166]
[1757772195320,0.20832571,115700.0,115690.0,1.55362166]
[1757772195521,0.03884239,115700.0,115690.0,1.55362166]
[1757772195822,0.03884239,115700.0,115690.0,1.46888]
[1757772196028,0.03891569,115700.0,115690.0,1.82362166]
[1757772196229,0.12365735,115700.0,115690.0,1.80362166]
[1757772196426,0.02496569,115700.0,115690.0,1.88836332]
[1757772196623,0.02496569,115700.0,115690.0,1.71888]
[1757772196822,0.02496569,115700.0,115690.0,2.24836332]
[1757772197221,0.02496569,115700.0,115690.0,2.33310498]
[1757772197421,0.02496569,115700.0,115690.0,2.07888]
[1757772197422,0.001,115700.0,115690.0,2.07888]
[1757772197729,0.001,115700.0,115690.0,2.33310498]
[1757772197929,0.18343332,115720.0,115690.0,2.42801013]
[1757772198128,0.12266364,115720.0,115710.0,0.44554166]
[1757772198326,0.2074053,115720.0,115710.0,1.30346166]
[1757772198527,0.208332,115720.0,115710.0,1.30346166]
[1757772198828,0.31440366,115720.0,115710.0,1.21868]
[1757772199635,0.31440366,115720.0,115710.0,0.3608]
[1757772199815,0.31440366,115720.0,115710.0,0.85784]
[1757772200021,0.31640366,115720.0,115710.0,1.21864]
[1757772200217,0.31640366,115720.0,115710.0,0.85784]
[1757772200426,0.22359785,115720.0,115710.0,0.85784]
[1757772200624,0.22359785,115720.0,115710.0,1.21864]
[1757772200826,0.06476868,115720.0,115710.0,1.21864]
[1757772201025,0.22359785,115720.0,115710.0,0.3608]
[1757772201223,0.20226785,115720.0,115710.0,1.2186]
[1757772201423,0.04343868,115720.0,115710.0,1.2186]
[1757772201629,0.20226785,115720.0,115710.0,1.2186]
[1757772201826,0.04443868,115720.0,115710.0,1.2186]
[1757772202020,0.20326785,115720.0,115710.0,1.2186]
[1757772202330,0.04443868,115720.0,115710.0,1.21852]
[1757772202529,0.20326785,115720.0,115710.0,1.21852]
[1757772203625,0.22520785,115720.0,115710.0,1.21844]
[1757772205233,0.22520785,115720.0,115710.0,0.3608]
[1757772205528,0.0346,115710.0,115700.0,0.3608]
[1757772205730,0.37618889,115710.0,115700.0,0.3608]
[1757772205924,0.62711559,115710.0,115690.0,2.02052]
[1757772206126,0.17148917,115700.0,115690.0,2.02052]
[1757772206317,0.17241587,115700.0,115690.0,2.878]
[1757772207128,0.0135867,115700.0,115690.0,2.87796]
[1757772207428,0.17241587,115700.0,115690.0,2.87796]
[1757772208131,0.0135867,115700.0,115690.0,2.87796]
[1757772208330,0.02485482,115700.0,115690.0,3.03678917]
[1757772208633,0.01266,115710.0,115690.0,3.75678917]
[1757772208823,0.0135867,115710.0,115700.0,0.51962917]
[1757772209023,0.03751642,115710.0,115700.0,0.51962917]
[1757772209227,0.03751642,115710.0,115700.0,0.3608]
[1757772209918,0.03751642,115710.0,115700.0,0.51962917]
[1757772209919,0.02585642,115710.0,115700.0,0.51962917]
[1757772210126,0.0019267,115710.0,115700.0,0.51962917]
[1757772210523,0.0019267,115710.0,115700.0,0.3608]
[1757772210727,0.0019267,115710.0,115700.0,0.51962917]
[1757772211032,0.0039267,115710.0,115700.0,0.51962917]
[1757772211233,0.0039267,115710.0,115700.0,0.8308]
[1757772211433,0.0039267,115710.0,115700.0,0.98962917]
[1757772211932,0.0039267,115710.0,115700.0,1.30962917]
[1757772212128,0.0029267,115710.0,115700.0,1.30962917]
[1757772212533,0.0009267,115710.0,115700.0,1.30962917]
[1757772214234,0.04628314,115760.0,115730.0,0.1863578]
[1757772214436,0.01266,115770.0,115750.0,0.40400124]
[1757772214637,0.01266,115770.0,115760.0,1.01606917]
[1757772214834,0.01266,115770.0,115760.0,1.83766917]
[1757772215032,0.01266,115770.0,115760.0,2.33283384]
[1757772215229,0.01266,115770.0,115760.0,2.85283384]
[1757772215429,0.01266,115770.0,115760.0,1.90420912]
[1757772215732,0.01266,115780.0,115760.0,1.90420912]
[1757772215923,0.01266,115780.0,115770.0,0.51962917]
[1757772216128,0.01266,115780.0,115770.0,1.05962917]
[1757772216325,0.01266,115780.0,115770.0,1.758]
[1757772216736,0.01266,115780.0,115770.0,1.91682917]
[1757772217335,0.01266,115780.0,115770.0,0.91830713]
[1757772217533,0.01266,115780.0,115770.0,1.0771363]
[1757772217740,0.01266,115780.0,115770.0,0.37830713]
[1757772217741,0.44342917,115780.0,115770.0,0.37830713]
[1757772218036,0.44342917,115780.0,115770.0,1.23534713]
[1757772218234,0.44342917,115780.0,115770.0,1.23734713]
[1757772218735,0.44342917,115780.0,115770.0,1.23834713]
[1757772219133,0.2846,115780.0,115770.0,1.23834713]
[1757772219335,0.0346,115780.0,115770.0,1.3971363]
[1757772219935,0.0346,115780.0,115770.0,0.38130713]
[1757772220441,0.0346,115780.0,115770.0,1.23826713]
[1757772220838,0.0346,115780.0,115770.0,1.23526713]
[1757772221441,0.19342917,115780.0,115770.0,1.23518713]
[1757772221634,0.0346,115780.0,115770.0,0.01750713]
[1757772221831,0.19342917,115780.0,115770.0,0.01750713]
[1757772222033,0.19342917,115780.0,115770.0,0.87698713]
[1757772222339,0.19342917,115780.0,115770.0,1.23778713]
[1757772222537,0.0346,115780.0,115770.0,1.23778713]
[1757772222728,0.19342917,115780.0,115770.0,1.23778713]
[1757772222931,0.19342917,115780.0,115770.0,0.37830713]
[1757772223239,0.19342917,115780.0,115770.0,1.23742713]
[1757772223444,0.19342917,115780.0,115770.0,0.37830713]
[1757772223735,0.44342917,115780.0,115770.0,0.87602713]
[1757772223938,0.44342917,115780.0,115770.0,0.01750713]
[1757772224442,0.44342917,115780.0,115770.0,0.87566713]
[1757772225127,0.44342917,115780.0,115770.0,0.01750713]
[1757772225533,0.6454,115780.0,115770.0,0.87498713]
[1757772225736,0.80422917,115780.0,115770.0,0.87498713]
[1757772225937,0.80422917,115780.0,115770.0,0.95496713]
[1757772226137,0.80422917,115780.0,115770.0,0.09748713]
[1757772226338,0.6454,115780.0,115770.0,0.95496713]
[1757772226542,0.82761041,115780.0,115770.0,0.95496713]
[1757772226847,0.41878124,115780.0,115770.0,0.95496713]
[1757772227143,0.05798124,115780.0,115770.0,1.31576713]
[1757772227542,0.21681041,115780.0,115770.0,1.31576713]
[1757772227744,0.21681041,115780.0,115770.0,1.31508713]
[1757772228647,0.21681041,115780.0,115770.0,1.31504713]
[1757772228941,0.21681041,115780.0,115770.0,0.45828713]
[1757772229145,0.21681041,115780.0,115770.0,1.31504713]
[1757772229650,0.05798124,115780.0,115770.0,1.31504713]
[1757772229941,0.03604124,115780.0,115770.0,1.5738763]
[1757772230146,0.03604124,115780.0,115770.0,2.40270547]
[1757772230648,0.03604124,115780.0,115770.0,2.08504713]
[1757772230840,0.03604124,115780.0,115770.0,2.2438763]
[1757772231344,0.03604124,115780.0,115770.0,2.48903347]
[1757772231541,0.01266,115780.0,115770.0,2.48903347]
[1757772232738,0.01266,115780.0,115770.0,1.54594547]
[1757772232937,0.01266,115780.0,115770.0,2.40266547]
[1757772233140,0.01266,115780.0,115770.0,2.40466547]
[1757772233548,0.01266,115780.0,115770.0,2.40566547]
[1757772234245,0.01266,115780.0,115770.0,2.49199327]
[1757772234437,0.01266,115790.0,115770.0,2.56030847]
[1757772234632,0.01266,115790.0,115780.0,0.51962917]
[1757772234843,0.01266,115790.0,115780.0,1.10962917]
[1757772235038,0.03604593,115790.0,115780.0,1.10962917]
[1757772235950,0.03604593,115790.0,115780.0,1.19594947]
[1757772236148,0.01266,115790.0,115780.0,1.19594947]
[1757772236750,0.01266,115790.0,115780.0,1.19694947]
[1757772238246,0.03607967,115790.0,115780.0,1.19694947]
[1757772240153,0.03607967,115790.0,115780.0,1.11062917]
[1757772240357,0.01266,115800.0,115780.0,1.19694947]
[1757772240660,0.01266,115800.0,115790.0,3.03466917]
[1757772240847,0.01266,115800.0,115790.0,3.55466917]
[1757772241249,0.01266,115800.0,115790.0,3.5720199]
[1757772242354,0.01266,115800.0,115790.0,3.54441093]
[1757772242555,0.01266,115800.0,115790.0,3.55288974]
[1757772243356,0.01266,115800.0,115790.0,2.56514954]
[1757772243565,0.01266,115800.0,115790.0,3.41311073]
[1757772243752,0.01266,115800.0,115790.0,3.54433093]
[1757772244456,0.04351463,115800.0,115790.0,2.68789093]
[1757772244853,0.04351463,115800.0,115790.0,3.54429093]
[1757772245350,0.04351463,115800.0,115790.0,3.41307073]
[1757772245557,0.04351463,115800.0,115790.0,2.89303073]
[1757772247256,0.04351463,115800.0,115790.0,2.03667073]
[1757772247463,0.29351463,115800.0,115790.0,2.03667073]
[1757772247662,0.29351463,115800.0,115790.0,2.89299073]
[1757772248563,0.29351463,115800.0,115790.0,2.16789093]
[1757772248758,0.29351463,115800.0,115790.0,2.89295073]
[1757772249061,0.04351463,115800.0,115790.0,2.16789093]
[1757772249262,0.04351463,115800.0,115790.0,3.02417093]
[1757772249453,0.04351463,115800.0,115790.0,3.12417093]
[1757772251364,0.04351463,115800.0,115790.0,3.14417093]
[1757772251666,0.04351463,115800.0,115790.0,3.33417093]
[1757772252156,0.04351463,115800.0,115790.0,3.41414093]
[1757772252354,0.06651493,115800.0,115790.0,3.41414093]
[1757772253263,0.0356603,115800.0,115790.0,3.41414093]
[1757772256466,0.04351463,115800.0,115790.0,3.41414093]
[1757772256765,0.06651493,115800.0,115790.0,3.41414093]
[1757772258566,0.06651493,115800.0,115790.0,3.28292073]
[1757772258761,0.06651493,115800.0,115790.0,3.41414093]
[1757772259571,0.06651493,115800.0,115790.0,3.28292073]
[1757772259760,0.06651493,115800.0,115790.0,3.41514093]
[1757772262870,0.06651493,115800.0,115790.0,3.28392073]
[1757772263069,0.11279807,115800.0,115790.0,3.41514093]
[1757772263370,0.06651493,115800.0,115790.0,3.41514093]
[1757772264373,0.08979777,115800.0,115790.0,3.39666268]
[1757772264574,0.06651493,115800.0,115790.0,3.39666268]
[1757772264774,0.06651493,115800.0,115790.0,3.08666268]
[1757772265072,0.06651493,115800.0,115790.0,3.62666268]
[1757772267367,0.0356603,115800.0,115790.0,3.62666268]
[1757772270460,0.0356603,115800.0,115790.0,3.62590268]
[1757772271867,0.0356603,115800.0,115790.0,3.51316073]
[1757772272072,0.0356603,115800.0,115790.0,3.62590268]
[1757772272976,0.0356603,115800.0,115790.0,2.46038268]
[1757772273278,0.0356603,115800.0,115790.0,3.31574268]
[1757772273964,0.0356603,115800.0,115790.0,2.23038268]
[1757772274276,0.0356603,115800.0,115790.0,3.50570268]
[1757772274470,0.0356603,115800.0,115790.0,2.53764073]
[1757772274664,0.0356603,115800.0,115790.0,3.50570268]
[1757772275673,0.0356603,115800.0,115790.0,3.61844463]
[1757772275970,0.0356603,115800.0,115790.0,3.50570268]
[1757772276777,0.01266,115800.0,115790.0,3.95475323]